bitfinex-derivatives/quotes_SOLF0:USTF0_20240902
["timestamp","ask_amount","ask_price","bid_price","bid_amount"]
[1725246056639,3.862,129.47,129.45,0.05255538]
[1725246056839,0.05943208,129.48,129.45,0.05255538]
[1725246057538,3.8623,129.46,129.45,0.05255538]
[1725246057947,0.05943208,129.48,129.45,0.05255538]
[1725246057948,3.92143208,129.48,129.45,0.05255538]
[1725246058142,0.05943208,129.48,129.45,0.05255538]
[1725246058549,3.8622,129.47,129.45,0.05255538]
[1725246060241,3.8623,129.46,129.45,0.05255538]
[1725246060641,0.05943208,129.48,129.45,0.05255538]
[1725246061750,0.05943208,129.48,129.46,23.78]
[1725246062848,225.0,129.62,129.46,23.78]
[1725246062849,228.85159031,129.66,129.47,23.78]
[1725246063042,2.8343,129.61,129.52,23.78]
[1725246063244,3.85773864,129.6,129.52,23.78]
[1725246063439,3.8589,129.58,129.54,27.6399]
[1725246063848,3.8589,129.58,129.55,0.05045175]
[1725246064046,3.8579,129.61,129.56,27.6392]
[1725246064247,3.93188137,129.62,129.56,23.78]
[1725246064451,2.8854,129.64,129.58,0.05781548]
[1725246064844,3.8576,129.62,129.58,0.05781548]
[1725246065053,7.64969144,129.62,129.58,0.05781548]
[1725246065249,1.4293,129.64,129.58,23.83781548]
[1725246065447,3.8573,129.63,129.58,27.69631548]
[1725246065853,1.4293,129.64,129.58,23.83781548]
[1725246066046,1.4293,129.64,129.6,23.78]
[1725246066250,1.4293,129.64,129.61,0.05592944]
[1725246066657,3.8569,129.65,129.61,0.05592944]
[1725246066951,3.8569,129.65,129.61,3.91382944]
[1725246067151,3.8571,129.64,129.61,0.05592944]
[1725246067656,3.8566,129.66,129.61,0.05592944]
[1725246067856,26.5875,129.68,129.61,0.05592944]
[1725246068950,3.8569,129.65,129.61,0.05592944]
[1725246070356,3.93582515,129.66,129.61,0.05592944]
[1725246070357,3.857,129.64,129.61,0.05592944]
[1725246070960,3.8568,129.65,129.61,0.05592944]
[1725246071261,3.8568,129.65,129.61,3.91372944]
[1725246072954,3.8568,129.65,129.62,23.78]
[1725246073259,3.8565,129.66,129.62,27.6374]
[1725246073456,3.8565,129.66,129.63,0.05206193]
[1725246074556,3.81585636,129.66,129.63,0.05206193]
[1725246074759,2.8075,129.68,129.63,0.05206193]
[1725246075160,3.8567,129.65,129.63,0.05206193]
[1725246077465,3.857,129.64,129.63,0.05206193]
[1725246077666,2.8075,129.68,129.63,0.05206193]
[1725246078559,3.8569,129.65,129.63,0.05206193]
[1725246080061,3.857,129.64,129.63,0.05206193]
[1725246080259,3.87843258,129.66,129.58,23.78]
[1725246080463,23.78,129.67,129.58,23.78]
[1725246080767,3.8578,129.62,129.58,27.6386]
[1725246081162,0.05536155,129.61,129.59,0.05325989]
[1725246082068,3.91326155,129.61,129.59,0.05325989]
[1725246082967,0.05536155,129.61,129.59,0.05325989]
[1725246083369,3.8582,129.6,129.59,0.05325989]
[1725246083665,0.05536155,129.61,129.59,0.05325989]
[1725246085161,0.05536155,129.61,129.6,23.78]
[1725246086159,3.8574,129.63,129.6,23.78]
[1725246086367,3.8574,129.63,129.62,23.78]
[1725246087164,3.8576,129.62,129.6,23.78]
[1725246087367,2.6834,129.66,129.6,23.83201987]
[1725246089161,3.8578,129.62,129.6,23.83201987]
[1725246089565,2.6834,129.66,129.6,23.83201987]
[1725246090567,3.8579,129.61,129.6,23.83201987]
[1725246091066,3.8579,129.61,129.6,0.05201987]
[1725246091268,3.8576,129.62,129.6,0.05201987]
[1725246092171,3.8579,129.61,129.6,0.05201987]
[1725246092769,3.8586,129.59,129.56,23.78]
[1725246092976,23.78,129.65,129.56,23.78]
[1725246093780,0.04933764,129.62,129.59,0.05809538]
[1725246094978,3.90703764,129.62,129.59,23.83809538]
[1725246095875,0.04933764,129.62,129.59,27.69639538]
[1725246097170,0.04933764,129.62,129.61,27.6379]
[1725246097373,3.93172029,129.67,129.61,27.56471485]
[1725246097573,3.93172029,129.67,129.63,23.78]
[1725246097773,3.8564,129.66,129.63,23.78]
[1725246098280,7.73506006,129.67,129.63,27.68720771]
[1725246098487,3.87886006,129.67,129.63,23.83010771]
[1725246099283,3.8566,129.66,129.63,23.83010771]
[1725246099976,2.8473,129.69,129.65,23.78]
[1725246100179,2.7753,129.74,129.67,23.78]
[1725246100479,4.2211,129.74,129.69,0.05069597]
[1725246101178,3.8552,129.71,129.69,0.05069597]
[1725246102778,3.8547,129.72,129.69,0.05069597]
[1725246102979,4.2211,129.74,129.69,0.05069597]
[1725246103970,3.8544,129.73,129.69,23.83069597]
[1725246104783,3.91246216,129.75,129.7,23.78]
[1725246105080,3.89831593,129.79,129.74,23.78]
[1725246105281,4.0878,129.8,129.75,0.05123763]
[1725246106087,3.92722947,129.79,129.75,0.05123763]
[1725246106287,3.92722947,129.79,129.76,23.78]
[1725246106480,3.92722947,129.79,129.78,23.78]
[1725246106676,2.7989,129.85,129.78,27.6328]
[1725246106677,3.8514,129.83,129.78,27.6328]
[1725246106886,3.8027085,129.82,129.79,0.0542295]
[1725246107588,4.2487,129.85,129.79,0.0542295]
[1725246108081,3.8516,129.82,129.79,0.0542295]
[1725246108775,8.04832439,129.85,129.79,0.0542295]
[1725246110385,228.94419208,129.92,129.83,23.78]
[1725246110686,5.28239208,129.92,129.87,23.78]
[1725246110981,343.0,130.03,129.91,23.78]
[1725246110982,225.0,130.02,129.91,23.78]
[1725246111174,225.0,130.02,129.95,0.0576832]
[1725246111175,25.19471181,130.01,129.95,0.0576832]
[1725246111376,3.8475,129.96,129.95,0.0576832]
[1725246111579,7.61923314,129.96,129.95,0.0576832]
[1725246111781,3.8475,129.96,129.95,0.0576832]
[1725246112486,3.8472,129.97,129.95,0.0576832]
[1725246112780,4.2017,130.02,129.95,0.0576832]
[1725246112973,1.41433926,130.01,129.95,0.0576832]
[1725246113375,8.01191629,130.02,129.95,0.0576832]
[1725246113578,1.4142872,130.01,129.95,29.6276832]
[1725246113783,4.3495,130.05,129.97,29.61921325]
[1725246113982,3.8461,130.01,130.0,0.05636011]
[1725246114297,7.7898528,130.01,130.0,0.05636011]
[1725246114483,3.8461,130.01,130.0,0.05636011]
[1725246115190,7.65571169,130.01,130.0,0.05636011]
[1725246115489,3.80961169,130.01,130.0,0.05636011]
[1725246115687,68.89528969,130.4,130.0,0.05636011]
[1725246115688,4.3387,130.12,130.0,0.05636011]
[1725246115890,29.57,130.07,129.88,1.4656]
[1725246116095,1.41394406,130.06,129.96,29.57]
[1725246116290,29.57,130.09,129.98,29.57]
[1725246116588,29.57,130.09,129.99,33.4164]
[1725246116589,1.41379395,130.08,129.99,33.4164]
[1725246116785,1.41379395,130.08,129.99,29.57]
[1725246117288,3.8453,130.04,130.02,0.05323002]
[1725246117481,0.05236821,130.05,130.02,0.05323002]
[1725246117783,0.05236821,130.05,130.04,29.57]
[1725246119089,0.05236821,130.05,130.02,0.05323002]
[1725246119090,0.05236821,130.05,130.02,29.62323002]
[1725246120481,0.05236821,130.05,130.02,0.05323002]
[1725246120988,3.8454,130.04,130.02,0.05323002]
[1725246121187,0.05236821,130.05,130.02,0.05323002]
[1725246121586,3.8454,130.03,130.02,0.05323002]
[1725246123297,2.7876,130.04,129.93,29.57]
[1725246123298,4.1241,130.04,129.93,29.57]
[1725246123604,1.41398941,130.03,129.93,29.57]
[1725246123891,3.8466,129.99,129.94,3.8478]
[1725246124283,0.05472249,129.98,129.95,0.05081426]
[1725246125791,0.05472249,129.98,129.95,33.46851426]
[1725246127097,0.05472249,129.98,129.95,0.05081426]
[1725246127595,3.8475,129.96,129.95,0.05081426]
[1725246128598,3.8486,129.93,129.87,29.57]
[1725246128786,29.57,129.98,129.87,29.57]
[1725246128985,1.41459087,129.97,129.87,29.57]
[1725246129196,3.8492,129.91,129.87,29.57]
[1725246129398,29.57,129.96,129.86,3.8504]
[1725246129399,3.84627221,129.93,129.86,3.8504]
[1725246129595,32.4543,129.96,129.85,33.4207]
[1725246129799,3.8494,129.9,129.88,0.05872795]
[1725246129995,3.8494,129.9,129.88,0.04961489]
[1725246130697,3.8496,129.89,129.88,0.04961489]
[1725246131897,33.42935215,129.92,129.81,29.57]
[1725246132200,1.41520467,129.91,129.81,29.57]
[1725246132399,3.8514,129.83,129.79,29.57]
[1725246132905,0.05108164,129.82,129.8,0.05391173]
[1725246133499,0.05108164,129.82,129.81,29.57]
[1725246133692,1.41540109,129.9,129.81,29.57]
[1725246133895,228.85935215,129.92,129.83,29.57]
[1725246134394,3.8503,129.87,129.83,29.57]
[1725246134595,0.05623535,129.86,129.84,0.0530739]
[1725246135909,228.85935215,129.92,129.85,3.8507]
[1725246136203,228.85935215,129.92,129.86,29.57]
[1725246136396,225.0,129.92,129.86,29.57]
[1725246136601,3.8495,129.9,129.86,29.57]
[1725246136804,225.0,129.92,129.86,29.57]
[1725246137003,0.0525388,129.9,129.88,0.05855442]
[1725246137209,3.9019388,129.9,129.88,0.05855442]
[1725246137601,1.3939,130.01,129.88,29.62855442]
[1725246137904,8.0368123,130.17,129.95,29.57]
[1725246138207,1.4140099,130.05,129.97,29.57]
[1725246138504,5.31183866,130.05,129.97,29.57]
[1725246138700,3.90147442,130.02,130.0,0.05388871]
[1725246139101,0.05577442,130.02,130.0,0.05388871]
[1725246140104,3.90167442,130.02,130.0,0.05388871]
[1725246140895,3.846,130.01,130.0,0.05388871]
[1725246142010,3.90147442,130.02,130.0,0.05388871]
[1725246142907,3.846,130.01,130.0,0.05388871]
[1725246143211,0.05577442,130.02,130.0,0.05388871]
[1725246143396,3.8443,130.07,130.01,33.4158]
[1725246143600,3.850946,130.09,130.01,29.57]
[1725246143801,2.741,130.11,130.01,29.57]
[1725246144106,3.844,130.08,130.02,3.8455]
[1725246144304,2.741,130.11,130.01,29.57]
[1725246144305,3.80403014,130.09,130.01,29.57]
[1725246144503,2.741,130.11,130.04,0.05081796]
[1725246144704,3.8441,130.08,130.04,0.05081796]
[1725246145203,3.8437,130.09,130.04,3.89591796]
[1725246145513,2.741,130.11,130.04,0.05081796]
[1725246145708,1.4132907,130.1,130.04,0.05081796]
[1725246145903,3.8443,130.07,130.04,0.05081796]
[1725246146712,2.741,130.11,130.04,29.62081796]
[1725246147006,1.3622,130.15,130.08,29.57]
[1725246147222,29.57,130.21,130.1,0.05417877]
[1725246147405,29.57,130.21,130.11,29.57]
[1725246147602,29.57,130.21,130.08,29.57]
[1725246147603,3.843,130.12,130.08,29.57]
[1725246147810,29.57,130.19,130.08,29.57]
[1725246148007,1.41255377,130.18,130.08,29.57]
[1725246148214,1.41255377,130.18,130.12,0.05325335]
[1725246148713,3.8425,130.13,130.12,0.05325335]
[1725246148908,29.57,130.17,130.06,29.57]
[1725246149212,29.57,130.15,130.06,29.57]
[1725246149516,2.8468,130.14,130.06,29.57]
[1725246149813,3.8434,130.1,130.09,0.05629378]
[1725246150113,0.04945104,130.11,130.09,0.05629378]
[1725246150303,3.91716039,130.11,130.09,0.05629378]
[1725246150711,0.04945104,130.11,130.09,0.05629378]
[1725246151310,3.89255104,130.11,130.09,0.05629378]
[1725246151906,0.04945104,130.11,130.09,0.05629378]
[1725246152812,3.89255104,130.11,130.09,0.05629378]
[1725246153614,0.04945104,130.11,130.09,0.05629378]
[1725246154314,0.04945104,130.11,130.1,3.8433]
[1725246154509,0.04945104,130.11,130.09,35.50629378]
[1725246154709,1.4459,130.18,130.09,35.50629378]
[1725246154710,1.4459,130.18,130.09,35.45]
[1725246155311,5.2382745,130.18,130.06,35.45]
[1725246155616,5.2382745,130.18,130.09,35.45]
[1725246155818,5.2382745,130.18,130.12,0.0570737]
[1725246156112,1.41244189,130.17,130.12,0.0570737]
[1725246157112,3.8425,130.13,130.12,0.0570737]
[1725246160915,40.6882745,130.18,130.12,0.0570737]
[1725246161124,1.41252901,130.17,130.12,0.0570737]
[1725246162218,5.2382745,130.18,130.12,0.0570737]
[1725246162613,3.7923745,130.18,130.12,0.0570737]
[1725246162814,1.3415,130.2,130.12,0.0570737]
[1725246163015,1.3415,130.2,130.15,0.05598667]
[1725246163322,3.8413,130.17,130.15,0.05598667]
[1725246164223,3.88543537,130.18,130.15,0.05598667]
[1725246164526,1.3415,130.2,130.15,0.05598667]
[1725246165128,1.3415,130.2,130.04,5.1946018]
[1725246165129,35.45,130.18,130.04,1.3661]
[1725246165327,35.45,130.18,130.04,40.64466785]
[1725246165328,35.45,130.16,130.04,40.64466785]
[1725246165624,3.8436,130.09,130.04,40.64466785]
[1725246166325,0.05592346,130.08,130.05,0.05564729]
[1725246166528,0.05718318,130.08,130.05,0.05880745]
[1725246168325,3.8445,130.06,130.05,0.05880745]
[1725246168523,0.05718318,130.08,130.05,0.05880745]
[1725246169025,1.3527,130.14,130.05,35.50880745]
[1725246169325,1.422,130.15,130.05,35.45]
[1725246169533,1.422,130.15,130.07,35.45]
[1725246169830,3.8434,130.1,130.06,1.3924]
[1725246170128,3.8434,130.1,130.07,0.055833]
[1725246171920,3.8432,130.11,130.07,0.055833]
[1725246172121,5.31883798,130.15,130.08,0.05879188]
[1725246172427,3.8426,130.13,130.08,3.90269188]
[1725246173525,5.31883798,130.15,130.09,3.8436]
[1725246173526,3.8422,130.14,130.09,3.8436]
[1725246173733,3.8422,130.14,130.1,0.05699435]
[1725246174329,3.843,130.11,130.1,0.05699435]
[1725246174529,5.31883798,130.15,130.1,0.05699435]
[1725246174926,1.422,130.15,130.1,0.05699435]
[1725246176029,3.8423,130.14,130.1,0.05699435]
[1725246177434,3.842,130.15,130.1,0.05699435]
[1725246177628,1.3527,130.18,130.1,0.05699435]
[1725246177829,1.3527,130.18,130.13,0.05731803]
[1725246178051,3.8418,130.16,130.13,0.05731803]
[1725246179541,5.2427892,130.18,130.13,0.05731803]
[1725246179542,3.842,130.15,130.13,0.05731803]
[1725246180339,2.8003,130.21,130.13,29.59731803]
[1725246180543,3.7481749,130.2,130.16,0.05458048]
[1725246180741,2.8003,130.21,130.16,0.05458048]
[1725246181042,3.8413,130.17,130.16,0.05458048]
[1725246181841,29.54,130.17,130.07,29.54]
[1725246182232,29.54,130.15,130.05,29.54]
[1725246182438,1.3399,130.14,130.05,29.54]
[1725246182740,3.89973286,130.11,130.08,0.05812611]
[1725246182937,0.05643286,130.11,130.08,0.05812611]
[1725246183339,3.8434,130.1,130.08,0.05812611]
[1725246183839,0.05643286,130.11,130.08,0.05812611]
[1725246184236,0.05643286,130.11,130.09,29.54]
[1725246185246,3.842,130.15,130.1,7.60087446]
[1725246185543,2.6709,130.18,130.1,7.60087446]
[1725246185744,2.6709,130.18,130.1,3.8431]
[1725246185947,2.6709,130.18,130.09,33.3836]
[1725246186144,3.8424,130.14,130.12,0.05169835]
[1725246186648,2.6709,130.18,130.12,0.05169835]
[1725246186649,3.8425,130.13,130.12,0.05169835]
[1725246187145,3.8423,130.14,130.12,0.05169835]
[1725246187441,2.6709,130.18,130.12,0.05169835]
[1725246187640,1.4417,130.2,130.13,29.54]
[1725246187941,11.60745112,130.28,130.15,0.04852738]
[1725246187942,29.54,130.24,130.15,0.04852738]
[1725246188155,1.41198527,130.23,130.18,0.05686478]
[1725246188342,4.2357,130.25,130.18,0.05686478]
[1725246188543,3.84,130.22,130.18,0.05686478]
[1725246189846,3.8407,130.19,130.18,0.05686478]
[1725246190035,29.54,130.24,130.18,0.05686478]
[1725246190937,3.8407,130.19,130.18,0.05686478]
[1725246191150,29.54,130.24,130.18,0.05686478]
[1725246191749,3.8403,130.21,130.18,0.05686478]
[1725246193657,29.54,130.24,130.18,0.05686478]
[1725246194047,3.8407,130.19,130.18,0.05686478]
[1725246194650,3.8425,130.13,130.09,29.54]
[1725246194954,3.74816612,130.16,130.07,29.54]
[1725246195157,32.4044,130.18,130.07,29.54]
[1725246195350,36.24316421,130.18,130.07,29.54]
[1725246195549,0.05461822,130.14,130.11,0.05218914]
[1725246195853,3.89701822,130.14,130.11,0.05218914]
[1725246196461,0.05461822,130.14,130.11,0.05218914]
[1725246197350,29.54,130.22,130.13,29.54]
[1725246197543,29.54,130.22,130.11,0.05218914]
[1725246197544,3.8401,130.22,130.16,3.8414]
[1725246197743,1.3715,130.25,130.15,29.54]
[1725246198257,3.8401,130.22,130.17,3.8413]
[1725246198459,1.3715,130.25,130.18,0.05453397]
[1725246198846,3.8395,130.23,130.18,3.89543397]
[1725246199047,1.3715,130.25,130.18,3.89543397]
[1725246199366,1.3715,130.25,130.18,0.05453397]
[1725246200552,3.84,130.22,130.18,0.05453397]
[1725246200753,1.3715,130.25,130.18,0.05453397]
[1725246201154,3.8398,130.22,130.18,0.05453397]
[1725246202852,3.8402,130.21,130.18,0.05453397]
[1725246203157,29.54,130.24,130.18,0.05453397]
[1725246204055,3.8404,130.2,130.18,0.05453397]
[1725246204957,3.8404,130.2,130.11,1.4379]
[1725246204958,29.54,130.21,130.11,29.54]
[1725246205153,1.3672,130.19,130.11,29.54]
[1725246205353,1.3672,130.19,130.09,30.9291]
[1725246205354,2.7559,130.19,130.09,30.9291]
[1725246205758,2.7559,130.19,130.09,29.54]
[1725246205759,29.54,130.17,130.09,29.54]
[1725246205959,29.54,130.17,130.08,1.3287]
[1725246205960,0.05090915,130.14,130.12,0.05899391]
[1725246208157,3.89310915,130.14,130.12,0.05899391]
[1725246208756,3.8425,130.13,130.12,0.05899391]
[1725246209364,3.8434,130.1,130.05,30.9075]
[1725246210065,3.7734399,130.14,130.05,30.9075]
[1725246210366,29.54,130.16,130.07,3.8442]
[1725246210564,0.05714647,130.11,130.08,0.05649276]
[1725246210757,0.05714647,130.11,130.08,0.05824689]
[1725246212466,3.8436,130.09,130.08,0.05824689]
[1725246213462,2.73,130.1,130.01,32.3989]
[1725246213674,3.8448,130.05,130.0,3.8462]
[1725246213968,29.54,130.08,129.99,33.37205226]
[1725246214260,3.8453,130.04,129.99,33.37205226]
[1725246214457,3.8453,130.04,129.99,37.21845226]
[1725246214656,0.04916551,130.03,130.0,0.05573955]
[1725246215565,0.04916551,130.03,129.89,2.7563]
[1725246215566,29.54,130.02,129.91,29.54]
[1725246215865,2.7788,130.03,129.93,29.54]
[1725246216065,3.8461,130.01,129.95,3.8477]
[1725246216372,0.0570652,129.99,129.97,0.05132428]
[1725246221463,0.0570652,129.99,129.98,29.54]
[1725246221773,4.1942,130.1,129.98,29.54]
[1725246221968,4.1942,130.1,130.02,29.54]
[1725246222472,3.8444,130.07,130.02,29.54]
[1725246222662,4.1942,130.1,130.02,29.54]
[1725246222868,0.04950821,130.07,130.05,0.05152803]
[1725246224268,0.04950821,130.07,130.06,3.8445]
[1725246227465,0.04950821,130.07,130.05,3.89622803]
[1725246228877,0.04950821,130.07,130.05,0.05152803]
[1725246230178,3.8445,130.06,130.05,0.05152803]
[1725246230866,5.2327,130.06,130.05,0.05152803]
[1725246232186,1.3882,130.06,130.05,0.05152803]
[1725246232676,0.04950821,130.07,130.05,0.05152803]
[1725246235778,3.8445,130.06,130.05,0.05152803]
[1725246236191,2.8137,130.07,130.0,3.8461]
[1725246236387,3.8449,130.05,130.0,3.8461]
[1725246236674,3.8449,130.05,129.96,3.754412]
[1725246236675,29.54,130.05,129.96,3.754412]
[1725246236887,29.54,130.06,129.97,29.54]
[1725246237071,29.54,130.06,129.97,33.39591377]
[1725246237268,0.05548819,130.03,130.0,0.05386527]
[1725246237471,0.05548819,130.03,130.01,29.54]
[1725246237676,0.05548819,130.03,130.02,3.8457]
[1725246238885,0.05548819,130.03,130.01,33.3859]
[1725246239578,225.0,130.16,130.01,29.54]
[1725246239777,2.8432,130.14,130.05,29.54]
[1725246240079,3.8436,130.1,130.05,29.54]
[1725246240381,2.8432,130.14,130.05,29.54]
[1725246240578,0.05634492,130.11,130.08,0.0562311]
[1725246241784,0.05634492,130.11,130.05,29.54]
[1725246242081,225.0,130.16,130.09,29.54]
[1725246242272,3.88201383,130.19,130.11,29.54]
[1725246242475,2.7568,130.24,130.15,29.54]
[1725246242676,5.31710401,130.23,130.16,3.75518831]
[1725246242878,3.90507302,130.23,130.16,3.75518831]
[1725246243073,3.90507302,130.23,130.13,29.54]
[1725246243074,570.0,130.41,130.22,29.54]
[1725246243278,40.14085671,130.46,130.3,0.05129445]
[1725246243279,0.05111661,130.33,130.3,0.05129445]
[1725246243482,3.82167563,130.32,130.3,0.05835681]
[1725246243690,0.04961578,130.33,130.3,0.05835681]
[1725246244484,0.04961578,130.33,130.31,29.54]
[1725246244680,3.8288807,130.41,130.31,29.54]
[1725246244887,30.9061,130.44,130.33,29.54]
[1725246245183,1.40998222,130.43,130.36,29.54]
[1725246245386,2.776,130.51,130.26,29.54]
[1725246245387,3.75786887,130.49,130.42,29.54]
[1725246245586,3.75786887,130.49,130.33,33.46599416]
[1725246245587,0.05024226,130.47,130.45,29.54]
[1725246245783,1.40897695,130.52,130.45,29.5923971]
[1725246245979,6.60773789,130.58,130.51,35.31]
[1725246246186,1.40838087,130.57,130.51,35.31]
[1725246246382,3.90027637,130.59,130.48,35.31]
[1725246246686,6.63694946,130.58,130.48,35.31]
[1725246246883,0.05839101,130.54,130.52,0.0519547]
[1725246247078,3.89855853,130.62,130.52,35.36437021]
[1725246247387,3.8287,130.6,130.52,35.31]
[1725246247775,35.31,130.63,130.52,35.31]
[1725246248089,35.31,130.61,130.56,0.05368915]
[1725246248391,1.40780076,130.6,130.57,0.05024372]
[1725246248582,1.40780076,130.6,130.57,0.0511225]
[1725246248783,35.31,130.58,130.45,35.31]
[1725246248980,35.31,130.56,130.43,35.31]
[1725246249390,35.31,130.54,130.4,35.31]
[1725246249786,0.04892414,130.48,130.46,0.05597958]
[1725246249984,0.04928646,130.48,130.46,0.05115271]
[1725246250481,0.04928646,130.48,130.28,0.4691]
[1725246250482,35.31,130.47,130.32,3.914618]
[1725246250676,35.31,130.47,130.28,0.4691]
[1725246250677,35.31,130.47,130.35,35.31]
[1725246250876,3.74635037,130.46,130.35,35.31]
[1725246251088,35.31,130.5,130.37,35.31]
[1725246251290,3.7724146,130.49,130.39,35.31]
[1725246251584,0.05311804,130.45,130.42,0.0584057]
[1725246251786,0.05311804,130.45,130.42,0.05491994]
[1725246253188,0.05311804,130.45,130.33,35.31]
[1725246253383,35.31,130.45,130.33,35.31]
[1725246254078,1.3291,130.44,130.33,35.31]
[1725246254285,0.05024336,130.4,130.37,0.05374498]
[1725246254485,0.05281888,130.4,130.37,0.05466188]
[1725246254887,0.05281888,130.4,130.38,35.31]
[1725246255289,1.4324,130.53,130.38,35.31]
[1725246255592,1.4324,130.53,130.42,35.31]
[1725246255593,1.40904011,130.49,130.42,35.31]
[1725246255796,1.40904011,130.49,130.42,39.1438]
[1725246256092,1.4685,130.5,130.42,35.31]
[1725246256292,1.4685,130.5,130.4,35.31]
[1725246256489,0.05384084,130.47,130.45,0.05473964]
[1725246259094,0.05384084,130.47,130.46,3.8327]
[1725246259391,0.05384084,130.47,130.45,35.36473964]
[1725246259392,0.05384084,130.47,130.45,0.05473964]
[1725246259794,3.88654084,130.47,130.45,0.05473964]
[1725246260193,0.05384084,130.47,130.45,0.05473964]
[1725246261388,0.05384084,130.47,130.45,35.36473964]
[1725246262494,0.05384084,130.47,130.45,39.19763964]
[1725246262695,1.3518,130.54,130.45,39.1454933]
[1725246263001,1.3518,130.54,130.48,35.31]
[1725246263202,5.1824,130.54,130.48,35.31]
[1725246263701,0.05390835,130.52,130.5,0.05135192]
[1725246264106,3.88889459,130.51,130.4,35.31]
[1725246264610,1.40895097,130.5,130.4,35.31]
[1725246264907,3.8322,130.48,130.4,35.31]
[1725246265096,1.3682,130.5,130.43,0.0550153]
[1725246265097,0.04860689,130.45,130.43,0.0550153]
[1725246265298,0.05425836,130.45,130.43,0.0550153]
[1725246265897,3.8333,130.44,130.43,0.0550153]
[1725246266098,0.05425836,130.45,130.43,0.0550153]
[1725246266912,3.8339,130.42,130.38,35.31]
[1725246267206,36.6782,130.5,130.38,35.31]
[1725246267408,1.40917878,130.49,130.38,35.31]
[1725246267598,3.8338,130.43,130.38,35.31]
[1725246267802,36.6782,130.5,130.38,35.31]
[1725246268105,3.8333,130.44,130.43,0.05651565]
[1725246268621,0.04906218,130.45,130.44,3.8333]
[1725246268912,0.04906218,130.45,130.43,0.05651565]
[1725246269303,0.04906218,130.45,130.43,3.89001565]
[1725246269810,0.04906218,130.45,130.43,0.05651565]
[1725246271013,0.04906218,130.45,130.44,3.8333]
[1725246271216,0.04906218,130.45,130.43,0.05651565]
[1725246271718,0.04906218,130.45,130.43,3.88991565]
[1725246272015,0.04906218,130.45,130.43,0.05651565]
[1725246273314,0.04906218,130.45,130.44,3.8333]
[1725246274209,0.04906218,130.45,130.43,0.05651565]
[1725246274715,0.04906218,130.45,130.43,3.89011565]
[1725246275519,0.04906218,130.45,130.43,0.05651565]
[1725246277114,0.04906218,130.45,130.43,3.88991565]
[1725246277315,0.04906218,130.45,130.44,35.31]
[1725246277810,0.04906218,130.45,130.44,39.1433]
[1725246279414,3.8313,130.51,130.47,3.8324]
[1725246279622,2.7855,130.54,130.47,35.31]
[1725246279623,1.3518,130.54,130.47,35.31]
[1725246280416,1.3518,130.54,130.49,0.05712986]
[1725246280417,0.04978397,130.52,130.49,0.05712986]
[1725246281913,0.04978397,130.52,130.49,35.36712986]
[1725246282315,3.8297,130.57,130.51,35.31]
[1725246282520,1.4584,130.59,130.55,35.31]
[1725246283014,5.2874,130.59,130.55,35.31]
[1725246283523,3.88467548,130.58,130.56,0.05054242]
[1725246283724,0.05537548,130.58,130.56,0.05054242]
[1725246284111,3.8295,130.57,130.56,0.05054242]
[1725246285115,3.8295,130.57,130.47,5.41061894]
[1725246285116,1.40805338,130.57,130.43,3.55297634]
[1725246285316,1.40805338,130.57,130.46,35.31]
[1725246285517,3.8304,130.54,130.47,3.86982223]
[1725246285726,36.6415,130.58,130.48,35.31]
[1725246286015,36.6415,130.58,130.52,0.05832904]
[1725246286016,0.05652553,130.54,130.52,0.05832904]
[1725246287616,3.8307,130.53,130.52,0.05832904]
[1725246287816,0.05652553,130.54,130.46,35.31]
[1725246287817,3.81302494,130.54,130.46,35.31]
[1725246288122,35.31,130.56,130.46,35.31]
[1725246288423,1.40836479,130.55,130.46,35.31]
[1725246288618,1.40836479,130.55,130.44,35.31]
[1725246288821,0.05705073,130.51,130.44,35.31]
[1725246289023,0.05705073,130.51,130.48,0.04845646]
[1725246290112,3.8319,130.49,130.48,0.04845646]
[1725246290513,1.3384,130.5,130.42,35.31]